[Event "Early-Titled-Tuesday-Blitz-October-17-2023"]
[Site "Chess.com"]
[Date "2023.10.17"]
[Round "3"]
[White "Fore_Man"]
[Black "ArmanGhevondyanchess"]
[Result "1-0"]
[WhiteElo "2341"]
[BlackElo "2536"]
[TimeControl "180+1"]
[EndTime "8:26:43 PDT"]
[Termination "Fore_Man won by resignation"]

1. Nf3 {[%clk 0:03:00.9]} 1... Nf6 {[%clk 0:02:58.3]} 2. c4 {[%clk 0:03:00.6]}
2... g6 {[%clk 0:02:59]} 3. d4 {[%clk 0:03:00.5]} 3... d5 {[%clk 0:02:59.8]} 4.
cxd5 {[%clk 0:03:00.5]} 4... Bg7 {[%clk 0:03:00.5]} 5. Qb3 {[%clk 0:02:54.3]}
5... Qxd5 {[%clk 0:02:59.8]} 6. Qxd5 {[%clk 0:02:52.4]} 6... Nxd5 {[%clk
0:03:00.7]} 7. e4 {[%clk 0:02:52.9]} 7... Nb4 {[%clk 0:02:57.4]} 8. Na3 {[%clk
0:02:51.5]} 8... O-O {[%clk 0:02:54.4]} 9. Bd2 {[%clk 0:02:45.9]} 9... a5 {[%clk
0:02:51]} 10. Be2 {[%clk 0:02:45.3]} 10... N8c6 {[%clk 0:02:48.6]} 11. Bc3
{[%clk 0:02:42.6]} 11... Bg4 {[%clk 0:02:43.3]} 12. d5 {[%clk 0:02:40.5]} 12...
Bxf3 {[%clk 0:02:42.2]} 13. gxf3 {[%clk 0:02:24.5]} 13... Nd4 {[%clk 0:02:30.8]}
14. Kd2 {[%clk 0:02:00.1]} 14... e6 {[%clk 0:02:27.1]} 15. dxe6 {[%clk
0:01:59.5]} 15... fxe6 {[%clk 0:02:25.3]} 16. Nb5 {[%clk 0:01:24.5]} 16... Ndc2
{[%clk 0:02:14.8]} 17. Bxb4 {[%clk 0:01:12.7]} 17... Rfd8+ {[%clk 0:02:11.6]}
18. Kxc2 {[%clk 0:01:12.6]} 18... axb4 {[%clk 0:02:09.9]} 19. Rhd1 {[%clk
0:01:08.2]} 19... Rxd1 {[%clk 0:02:07.8]} 20. Bxd1 {[%clk 0:01:06.3]} 20... c6
{[%clk 0:02:07.2]} 21. Nd6 {[%clk 0:01:05.8]} 21... b5 {[%clk 0:02:05.1]} 22. f4
{[%clk 0:01:04.1]} 22... Rd8 {[%clk 0:02:01.1]} 23. e5 {[%clk 0:01:03.9]} 23...
g5 {[%clk 0:02:01.2]} 24. Bg4 {[%clk 0:01:00.8]} 24... gxf4 {[%clk 0:02:01.3]}
25. Bxe6+ {[%clk 0:01:00.8]} 25... Kf8 {[%clk 0:02:02.1]} 26. Re1 {[%clk
0:00:57.4]} 26... Bxe5 {[%clk 0:01:57.2]} 27. Rxe5 {[%clk 0:00:58.3]} 27... Rxd6
{[%clk 0:01:58]} 28. Bf5 {[%clk 0:00:56.7]} 28... Kg7 {[%clk 0:01:58.1]} 29. Be4
{[%clk 0:00:55.9]} 29... h6 {[%clk 0:01:53.7]} 30. Rc5 {[%clk 0:00:55.7]} 30...
Re6 {[%clk 0:01:52.1]} 31. f3 {[%clk 0:00:56.3]} 1-0

[Event "Early-Titled-Tuesday-Blitz-October-17-2023"]
[Site "Chess.com"]
[Date "2023.10.17"]
[Round "3"]
[White "Cayse"]
[Black "lefonghua"]
[Result "1-0"]
[WhiteElo "2897"]
[BlackElo "2667"]
[TimeControl "180+1"]
[EndTime "8:26:47 PDT"]
[Termination "Cayse won by resignation"]

1. e4 {[%clk 0:03:00.9]} 1... c5 {[%clk 0:02:59.6]} 2. Nf3 {[%clk 0:03:01]} 2...
g6 {[%clk 0:02:59.9]} 3. d4 {[%clk 0:03:00.6]} 3... cxd4 {[%clk 0:03:00.8]} 4.
Nxd4 {[%clk 0:03:00.9]} 4... Bg7 {[%clk 0:03:01.3]} 5. c4 {[%clk 0:02:59.6]}
5... Nc6 {[%clk 0:03:01.1]} 6. Be3 {[%clk 0:02:58]} 6... Nf6 {[%clk 0:03:01.2]}
7. Nc3 {[%clk 0:02:57.7]} 7... d6 {[%clk 0:03:00.1]} 8. Be2 {[%clk 0:02:55.3]}
8... O-O {[%clk 0:03:00.1]} 9. O-O {[%clk 0:02:55.1]} 9... Bd7 {[%clk
0:03:00.2]} 10. f3 {[%clk 0:02:52.1]} 10... Nxd4 {[%clk 0:02:59.7]} 11. Bxd4
{[%clk 0:02:52]} 11... a5 {[%clk 0:03:00.4]} 12. b3 {[%clk 0:02:49.2]} 12... Bc6
{[%clk 0:03:00.6]} 13. Qd2 {[%clk 0:02:49.6]} 13... Nd7 {[%clk 0:03:00.6]} 14.
Be3 {[%clk 0:02:49.9]} 14... Nc5 {[%clk 0:03:00.7]} 15. Rab1 {[%clk 0:02:40.6]}
15... Qb6 {[%clk 0:03:00.1]} 16. Rfc1 {[%clk 0:02:36.6]} 16... Rfc8 {[%clk
0:02:59.6]} 17. Bf1 {[%clk 0:02:32.7]} 17... Qd8 {[%clk 0:02:55.2]} 18. Qf2
{[%clk 0:02:31]} 18... h5 {[%clk 0:02:38.2]} 19. g3 {[%clk 0:02:21.5]} 19... b6
{[%clk 0:02:32.2]} 20. Rc2 {[%clk 0:02:13.4]} 20... Be5 {[%clk 0:02:21.7]} 21.
Rd1 {[%clk 0:02:09.4]} 21... Qf8 {[%clk 0:02:21.1]} 22. Nd5 {[%clk 0:02:04.1]}
22... Bxd5 {[%clk 0:02:18.2]} 23. cxd5 {[%clk 0:02:05]} 23... Qg7 {[%clk
0:02:12.8]} 24. Bb5 {[%clk 0:02:01.8]} 24... Rc7 {[%clk 0:02:01.6]} 25. a3
{[%clk 0:01:57.3]} 25... Rac8 {[%clk 0:01:55.3]} 26. Rdc1 {[%clk 0:01:45.1]}
26... Bb2 {[%clk 0:01:09.4]} 27. Rxb2 {[%clk 0:01:44.3]} 27... Nxe4 {[%clk
0:01:09.4]} 28. Rxc7 {[%clk 0:01:34.3]} 28... Rxc7 {[%clk 0:00:56.5]} 29. fxe4
{[%clk 0:01:32.8]} 1-0

[Event "Early-Titled-Tuesday-Blitz-October-17-2023"]
[Site "Chess.com"]
[Date "2023.10.17"]
[Round "3"]
[White "Aleksandar-Topalov"]
[Black "beccrajoy"]
[Result "1-0"]
[WhiteElo "2338"]
[BlackElo "1977"]
[TimeControl "180+1"]
[EndTime "8:26:52 PDT"]
[Termination "Aleksandar-Topalov won by resignation"]

1. b3 {[%clk 0:02:55.2]} 1... c5 {[%clk 0:02:59.4]} 2. Bb2 {[%clk 0:02:55.1]}
2... d5 {[%clk 0:02:59.7]} 3. e3 {[%clk 0:02:54.6]} 3... Nc6 {[%clk 0:02:58.5]}
4. Bb5 {[%clk 0:02:53.8]} 4... Nf6 {[%clk 0:02:55.4]} 5. Nf3 {[%clk 0:02:53.2]}
5... a6 {[%clk 0:02:48.6]} 6. Bxc6+ {[%clk 0:02:52.7]} 6... bxc6 {[%clk
0:02:49.5]} 7. Ne5 {[%clk 0:02:52.9]} 7... Qc7 {[%clk 0:02:45.6]} 8. O-O {[%clk
0:02:50.9]} 8... Bf5 {[%clk 0:02:45.4]} 9. d3 {[%clk 0:02:42.9]} 9... e6 {[%clk
0:02:45.3]} 10. f4 {[%clk 0:02:43]} 10... Be7 {[%clk 0:02:36.1]} 11. Nd2 {[%clk
0:02:43]} 11... O-O {[%clk 0:02:35.7]} 12. Qe2 {[%clk 0:02:41.2]} 12... Rfd8
{[%clk 0:02:35.6]} 13. e4 {[%clk 0:02:13.6]} 13... dxe4 {[%clk 0:02:34.9]} 14.
dxe4 {[%clk 0:02:12.3]} 14... Bg6 {[%clk 0:02:19.7]} 15. f5 {[%clk 0:02:03.2]}
15... exf5 {[%clk 0:02:13.7]} 16. exf5 {[%clk 0:02:02.6]} 16... Bh5 {[%clk
0:02:13.2]} 17. g4 {[%clk 0:02:01.1]} 17... Rxd2 {[%clk 0:01:35.2]} 18. Qxd2
{[%clk 0:02:00.4]} 18... Nxg4 {[%clk 0:01:33.6]} 19. Nxg4 {[%clk 0:01:57.2]}
19... Bxg4 {[%clk 0:01:33.8]} 20. f6 {[%clk 0:01:53.6]} 20... Bd6 {[%clk
0:01:23.7]} 21. Qg2 {[%clk 0:01:36.4]} 1-0

[Event "Early-Titled-Tuesday-Blitz-October-17-2023"]
[Site "Chess.com"]
[Date "2023.10.17"]
[Round "3"]
[White "Bauman_Guy"]
[Black "Sofia_Blokhin"]
[Result "1-0"]
[WhiteElo "2848"]
[BlackElo "2303"]
[TimeControl "180+1"]
[EndTime "8:26:53 PDT"]
[Termination "Bauman_Guy won by resignation"]

1. e4 {[%clk 0:03:00.9]} 1... c5 {[%clk 0:02:59.5]} 2. Nf3 {[%clk 0:03:00.4]}
2... e6 {[%clk 0:02:59.7]} 3. d4 {[%clk 0:03:00.4]} 3... cxd4 {[%clk 0:03:00.1]}
4. Nxd4 {[%clk 0:03:01.3]} 4... a6 {[%clk 0:03:00.6]} 5. Bd3 {[%clk 0:03:01.3]}
5... Qc7 {[%clk 0:03:00.8]} 6. O-O {[%clk 0:03:01.6]} 6... Nf6 {[%clk
0:03:01.2]} 7. Qe2 {[%clk 0:03:01.6]} 7... Bd6 {[%clk 0:02:55.5]} 8. g3 {[%clk
0:02:59.4]} 8... Nc6 {[%clk 0:02:52.7]} 9. Nxc6 {[%clk 0:02:59.1]} 9... dxc6
{[%clk 0:02:52.6]} 10. Nd2 {[%clk 0:02:58.9]} 10... e5 {[%clk 0:02:52.3]} 11. a4
{[%clk 0:02:58.8]} 11... a5 {[%clk 0:02:44.1]} 12. Nc4 {[%clk 0:02:58.8]} 12...
Bc5 {[%clk 0:02:37.1]} 13. Be3 {[%clk 0:02:58.9]} 13... Bxe3 {[%clk 0:02:33.8]}
14. Qxe3 {[%clk 0:02:59.8]} 14... Be6 {[%clk 0:02:28.6]} 15. Qc5 {[%clk
0:02:44.5]} 15... Nd7 {[%clk 0:02:16.3]} 16. Nd6+ {[%clk 0:02:42]} 16... Kd8
{[%clk 0:01:28.9]} 17. Qa3 {[%clk 0:02:38.4]} 17... h5 {[%clk 0:01:19.9]} 18.
Rad1 {[%clk 0:02:34.1]} 18... h4 {[%clk 0:01:18.6]} 19. Bc4 {[%clk 0:02:34]}
19... Bxc4 {[%clk 0:00:54.8]} 20. Nxc4 {[%clk 0:02:34.9]} 20... Kc8 {[%clk
0:00:49.1]} 21. Nd6+ {[%clk 0:02:28.1]} 21... Kb8 {[%clk 0:00:47.8]} 22. Nxf7
{[%clk 0:02:26.6]} 22... Rf8 {[%clk 0:00:43.7]} 23. Rxd7 {[%clk 0:02:22.5]}
23... Qxd7 {[%clk 0:00:40.7]} 24. Qxf8+ {[%clk 0:02:22]} 24... Ka7 {[%clk
0:00:40.8]} 25. Qc5+ {[%clk 0:02:18.2]} 25... b6 {[%clk 0:00:39.2]} 26. Nxe5
{[%clk 0:02:18.3]} 26... Qh3 {[%clk 0:00:34.3]} 27. Qe7+ {[%clk 0:02:11.6]}
27... Ka6 {[%clk 0:00:30.6]} 28. Nxc6 {[%clk 0:02:11.7]} 28... hxg3 {[%clk
0:00:27.7]} 29. fxg3 {[%clk 0:02:12.2]} 1-0

[Event "Early-Titled-Tuesday-Blitz-October-17-2023"]
[Site "Chess.com"]
[Date "2023.10.17"]
[Round "3"]
[White "familijatop71"]
[Black "McCarthyStone"]
[Result "0-1"]
[WhiteElo "2122"]
[BlackElo "2377"]
[TimeControl "180+1"]
[EndTime "8:27:05 PDT"]
[Termination "McCarthyStone won by resignation"]

1. e4 {[%clk 0:03:00.9]} 1... e5 {[%clk 0:02:59.4]} 2. Nf3 {[%clk 0:03:00]} 2...
d6 {[%clk 0:02:59.9]} 3. d4 {[%clk 0:02:59.2]} 3... exd4 {[%clk 0:03:00.8]} 4.
Nxd4 {[%clk 0:02:59.3]} 4... Nf6 {[%clk 0:03:01.4]} 5. Nc3 {[%clk 0:02:59.3]}
5... g6 {[%clk 0:03:02]} 6. Be2 {[%clk 0:02:54.7]} 6... Bg7 {[%clk 0:03:02.4]}
7. Be3 {[%clk 0:02:50.7]} 7... O-O {[%clk 0:03:03.3]} 8. f3 {[%clk 0:02:50.9]}
8... d5 {[%clk 0:03:01.8]} 9. e5 {[%clk 0:02:48.3]} 9... Nfd7 {[%clk 0:03:00.6]}
10. Nxd5 {[%clk 0:02:18.1]} 10... Nxe5 {[%clk 0:03:00.6]} 11. Nc3 {[%clk
0:02:02.2]} 11... Re8 {[%clk 0:02:54.9]} 12. Kf2 {[%clk 0:01:46.8]} 12... c6
{[%clk 0:02:50.3]} 13. Qd2 {[%clk 0:01:40.3]} 13... Qf6 {[%clk 0:02:30.2]} 14.
h3 {[%clk 0:01:29.5]} 14... Qh4+ {[%clk 0:02:26.8]} 15. g3 {[%clk 0:01:21.5]}
15... Qf6 {[%clk 0:02:27]} 16. Bg5 {[%clk 0:01:11.4]} 16... Ng4+ {[%clk
0:02:26.6]} 17. hxg4 {[%clk 0:01:05.4]} 17... Qxd4+ {[%clk 0:02:26.4]} 18. Qxd4
{[%clk 0:00:55.4]} 18... Bxd4+ {[%clk 0:02:27.3]} 19. Kf1 {[%clk 0:00:53.6]}
19... Be6 {[%clk 0:02:23.2]} 20. Rd1 {[%clk 0:00:51.2]} 20... Be5 {[%clk
0:02:15.3]} 21. f4 {[%clk 0:00:40.8]} 21... Bg7 {[%clk 0:02:15.2]} 22. a3 {[%clk
0:00:35.2]} 22... Nd7 {[%clk 0:02:13.1]} 23. Bh6 {[%clk 0:00:28.5]} 23... Bh8
{[%clk 0:02:11.7]} 24. Kf2 {[%clk 0:00:26.9]} 24... Nf6 {[%clk 0:02:11.5]} 25.
Bf3 {[%clk 0:00:19.2]} 25... Nxg4+ {[%clk 0:02:11.6]} 26. Bxg4 {[%clk
0:00:18.5]} 26... Bxg4 {[%clk 0:02:12.5]} 27. Rd7 {[%clk 0:00:16.3]} 27... Bxc3
{[%clk 0:02:09.7]} 28. bxc3 {[%clk 0:00:16.2]} 28... Re2+ {[%clk 0:02:10.6]} 29.
Kf1 {[%clk 0:00:16.5]} 29... Rae8 {[%clk 0:02:11.3]} 30. f5 {[%clk 0:00:12]}
30... Re1+ {[%clk 0:02:08.4]} 0-1

[Event "Early-Titled-Tuesday-Blitz-October-17-2023"]
[Site "Chess.com"]
[Date "2023.10.17"]
[Round "3"]
[White "djokovic74"]
[Black "Gentlejimmy7"]
[Result "1-0"]
[WhiteElo "2735"]
[BlackElo "2486"]
[TimeControl "180+1"]
[EndTime "8:27:07 PDT"]
[Termination "djokovic74 won by resignation"]

1. e4 {[%clk 0:03:00.9]} 1... c6 {[%clk 0:02:56.3]} 2. Nf3 {[%clk 0:03:00.8]}
2... d5 {[%clk 0:02:56.7]} 3. Nc3 {[%clk 0:03:01.5]} 3... Bg4 {[%clk 0:02:56.3]}
4. d4 {[%clk 0:03:01.6]} 4... Bxf3 {[%clk 0:02:56.4]} 5. Qxf3 {[%clk 0:03:01.7]}
5... dxe4 {[%clk 0:02:54.7]} 6. Nxe4 {[%clk 0:02:56.4]} 6... e6 {[%clk
0:02:55.6]} 7. c3 {[%clk 0:02:55.5]} 7... Nf6 {[%clk 0:02:55.8]} 8. Bd3 {[%clk
0:02:54]} 8... Nxe4 {[%clk 0:02:55.3]} 9. Bxe4 {[%clk 0:02:54.4]} 9... Be7
{[%clk 0:02:55.2]} 10. O-O {[%clk 0:02:49.1]} 10... Bg5 {[%clk 0:02:55.2]} 11.
Qg3 {[%clk 0:02:42.3]} 11... h6 {[%clk 0:02:37.8]} 12. f4 {[%clk 0:02:36.6]}
12... Bf6 {[%clk 0:02:36.1]} 13. f5 {[%clk 0:02:36.9]} 13... exf5 {[%clk
0:02:34.6]} 14. Bxf5 {[%clk 0:02:36.2]} 14... Kf8 {[%clk 0:02:27.5]} 15. Bf4
{[%clk 0:02:31.3]} 15... Na6 {[%clk 0:02:17.9]} 16. Rae1 {[%clk 0:02:23.1]}
16... h5 {[%clk 0:02:13.2]} 17. Be5 {[%clk 0:02:12.5]} 17... Bxe5 {[%clk
0:02:12.6]} 18. dxe5 {[%clk 0:02:04.4]} 18... h4 {[%clk 0:02:11.2]} 19. Qf3
{[%clk 0:01:48.3]} 19... Kg8 {[%clk 0:01:37.8]} 20. e6 {[%clk 0:01:46.8]} 20...
f6 {[%clk 0:01:22.7]} 21. e7 {[%clk 0:01:43.1]} 21... Qb6+ {[%clk 0:01:22.1]}
22. Kh1 {[%clk 0:01:42.2]} 22... Kf7 {[%clk 0:01:13.4]} 23. Qe4 {[%clk
0:01:31.3]} 23... g5 {[%clk 0:00:54.4]} 24. Bg6+ {[%clk 0:01:25.5]} 24... Kg7
{[%clk 0:00:53.5]} 25. e8=Q {[%clk 0:01:21.6]} 1-0

[Event "Early-Titled-Tuesday-Blitz-October-17-2023"]
[Site "Chess.com"]
[Date "2023.10.17"]
[Round "3"]
[White "Ariadna_Atreides"]
[Black "Kostukov_Alex"]
[Result "1-0"]
[WhiteElo "2199"]
[BlackElo "2374"]
[TimeControl "180+1"]
[EndTime "8:27:14 PDT"]
[Termination "Ariadna_Atreides won by resignation"]

1. d4 {[%clk 0:03:00.9]} 1... g6 {[%clk 0:02:50.3]} 2. c3 {[%clk 0:02:51.2]}
2... Bg7 {[%clk 0:02:48.3]} 3. e4 {[%clk 0:02:50.7]} 3... d6 {[%clk 0:02:48.2]}
4. Bd3 {[%clk 0:02:49.2]} 4... e5 {[%clk 0:02:48.8]} 5. Ne2 {[%clk 0:02:40.8]}
5... Nc6 {[%clk 0:02:38.8]} 6. Be3 {[%clk 0:02:36.2]} 6... Nf6 {[%clk
0:02:29.4]} 7. d5 {[%clk 0:02:20.5]} 7... Ne7 {[%clk 0:02:12.8]} 8. f3 {[%clk
0:02:20.6]} 8... c6 {[%clk 0:02:06.7]} 9. c4 {[%clk 0:02:18.7]} 9... b5 {[%clk
0:01:51.7]} 10. dxc6 {[%clk 0:01:59.8]} 10... bxc4 {[%clk 0:01:48.2]} 11. Bxc4
{[%clk 0:02:00.7]} 11... Nxc6 {[%clk 0:01:46.8]} 12. O-O {[%clk 0:01:28.3]}
12... O-O {[%clk 0:01:44.7]} 13. Nbc3 {[%clk 0:01:26.9]} 13... Be6 {[%clk
0:01:37.4]} 14. Bb5 {[%clk 0:01:23]} 14... Qc7 {[%clk 0:01:25.2]} 15. Rc1 {[%clk
0:01:20.9]} 15... Rac8 {[%clk 0:00:55.4]} 16. Nd5 {[%clk 0:01:14.4]} 16... Qb7
{[%clk 0:00:52.2]} 17. Bxc6 {[%clk 0:01:06.7]} 17... Qxb2 {[%clk 0:00:40.8]} 18.
Ne7+ {[%clk 0:01:03.4]} 18... Kh8 {[%clk 0:00:39.2]} 19. Nxc8 {[%clk 0:01:03.3]}
1-0

[Event "Early-Titled-Tuesday-Blitz-October-17-2023"]
[Site "Chess.com"]
[Date "2023.10.17"]
[Round "3"]
[White "Alenzer"]
[Black "maracayo"]
[Result "0-1"]
[WhiteElo "2109"]
[BlackElo "2370"]
[TimeControl "180+1"]
[EndTime "8:27:15 PDT"]
[Termination "maracayo won by resignation"]

1. e4 {[%clk 0:02:59.1]} 1... d6 {[%clk 0:02:59.3]} 2. d4 {[%clk 0:02:58.5]}
2... Nf6 {[%clk 0:02:58.7]} 3. Nc3 {[%clk 0:02:56.6]} 3... c6 {[%clk 0:02:58.6]}
4. Bc4 {[%clk 0:02:55.5]} 4... d5 {[%clk 0:02:58.1]} 5. exd5 {[%clk 0:02:54.4]}
5... cxd5 {[%clk 0:02:59]} 6. Bb5+ {[%clk 0:02:54.7]} 6... Nc6 {[%clk 0:02:58]}
7. Nf3 {[%clk 0:02:54.7]} 7... Bg4 {[%clk 0:02:57.1]} 8. O-O {[%clk 0:02:53.7]}
8... e6 {[%clk 0:02:56.4]} 9. h3 {[%clk 0:02:52.1]} 9... Bxf3 {[%clk 0:02:55.2]}
10. Qxf3 {[%clk 0:02:51.5]} 10... Rc8 {[%clk 0:02:54.2]} 11. Bg5 {[%clk
0:02:49.4]} 11... Be7 {[%clk 0:02:53]} 12. Rfd1 {[%clk 0:02:36.9]} 12... Qb6
{[%clk 0:02:50.1]} 13. Bxc6+ {[%clk 0:02:35.4]} 13... Rxc6 {[%clk 0:02:48.9]}
14. Rab1 {[%clk 0:02:19]} 14... O-O {[%clk 0:02:43]} 15. a3 {[%clk 0:02:06.6]}
15... Rfc8 {[%clk 0:02:38.6]} 16. Qd3 {[%clk 0:01:44.5]} 16... a6 {[%clk
0:02:22.5]} 17. Rd2 {[%clk 0:01:29.6]} 17... Rxc3 {[%clk 0:02:14.4]} 18. bxc3
{[%clk 0:01:19.9]} 18... Qxb1+ {[%clk 0:02:12.7]} 19. Kh2 {[%clk 0:01:19.7]}
19... Bd6+ {[%clk 0:01:38.4]} 20. g3 {[%clk 0:01:18.6]} 20... Ne4 {[%clk
0:01:31]} 21. Rd1 {[%clk 0:01:13.7]} 21... Qb5 {[%clk 0:01:18.5]} 22. Qxb5
{[%clk 0:00:46.1]} 22... axb5 {[%clk 0:01:17.3]} 0-1

[Event "Early-Titled-Tuesday-Blitz-October-17-2023"]
[Site "Chess.com"]
[Date "2023.10.17"]
[Round "3"]
[White "surrenderPLS"]
[Black "midedu"]
[Result "1-0"]
[WhiteElo "2516"]
[BlackElo "2001"]
[TimeControl "180+1"]
[EndTime "8:27:22 PDT"]
[Termination "surrenderPLS won by resignation"]

1. e4 {[%clk 0:03:00.9]} 1... c5 {[%clk 0:02:59.5]} 2. Nf3 {[%clk 0:03:01.3]}
2... Nc6 {[%clk 0:02:59.5]} 3. Nc3 {[%clk 0:03:00.3]} 3... Nf6 {[%clk
0:02:59.1]} 4. Bb5 {[%clk 0:02:58.4]} 4... d6 {[%clk 0:02:55.6]} 5. e5 {[%clk
0:02:49.6]} 5... Ng4 {[%clk 0:02:47.6]} 6. d4 {[%clk 0:02:48.5]} 6... cxd4
{[%clk 0:02:41.9]} 7. Nxd4 {[%clk 0:02:40.4]} 7... Nxe5 {[%clk 0:02:37.7]} 8. f4
{[%clk 0:02:31.5]} 8... a6 {[%clk 0:02:37.1]} 9. Ba4 {[%clk 0:02:01.8]} 9... b5
{[%clk 0:02:36.5]} 10. fxe5 {[%clk 0:01:28.4]} 10... Nxe5 {[%clk 0:02:31.3]} 11.
Bb3 {[%clk 0:01:23.2]} 11... e6 {[%clk 0:02:29.5]} 12. O-O {[%clk 0:01:22.1]}
12... Bb7 {[%clk 0:02:28.5]} 13. Bf4 {[%clk 0:00:55.6]} 13... Ng6 {[%clk
0:02:24.3]} 14. Be3 {[%clk 0:00:47.7]} 14... Qc8 {[%clk 0:01:38]} 15. Rxf7
{[%clk 0:00:27.4]} 15... Kxf7 {[%clk 0:01:30.4]} 16. Bxe6+ {[%clk 0:00:26.8]}
16... Qxe6 {[%clk 0:01:30.5]} 17. Nxe6 {[%clk 0:00:27.7]} 17... Kxe6 {[%clk
0:01:30.9]} 18. Qg4+ {[%clk 0:00:27.4]} 18... Ke7 {[%clk 0:01:20.5]} 19. Bg5+
{[%clk 0:00:26.7]} 19... Ke8 {[%clk 0:01:20.5]} 20. Re1+ {[%clk 0:00:25.7]}
20... Ne5 {[%clk 0:01:19.2]} 21. Qe6+ {[%clk 0:00:24.3]} 1-0

[Event "Early-Titled-Tuesday-Blitz-October-17-2023"]
[Site "Chess.com"]
[Date "2023.10.17"]
[Round "3"]
[White "Zhigalko_Sergei"]
[Black "Kirill_Klukin"]
[Result "1-0"]
[WhiteElo "2936"]
[BlackElo "2673"]
[TimeControl "180+1"]
[EndTime "8:27:24 PDT"]
[Termination "Zhigalko_Sergei won by resignation"]

1. e4 {[%clk 0:03:00.9]} 1... c5 {[%clk 0:02:58.3]} 2. Nf3 {[%clk 0:03:00.2]}
2... d6 {[%clk 0:02:53.6]} 3. d4 {[%clk 0:03:00.1]} 3... cxd4 {[%clk 0:02:54]}
4. Qxd4 {[%clk 0:03:01]} 4... Nc6 {[%clk 0:02:54.3]} 5. Bb5 {[%clk 0:03:00.9]}
5... Bd7 {[%clk 0:02:54.9]} 6. Bxc6 {[%clk 0:03:01.5]} 6... Bxc6 {[%clk
0:02:55.8]} 7. Nc3 {[%clk 0:03:02]} 7... h6 {[%clk 0:02:56]} 8. Qd3 {[%clk
0:03:02]} 8... Nf6 {[%clk 0:02:54.4]} 9. Nd4 {[%clk 0:03:02.1]} 9... e5 {[%clk
0:02:46.2]} 10. Nf5 {[%clk 0:02:44.4]} 10... d5 {[%clk 0:02:27.9]} 11. Qg3
{[%clk 0:02:36.9]} 11... g6 {[%clk 0:01:14.9]} 12. Qxe5+ {[%clk 0:02:34.9]}
12... Be7 {[%clk 0:01:15.2]} 13. exd5 {[%clk 0:02:06.1]} 13... Bd7 {[%clk
0:00:29.4]} 14. Nxe7 {[%clk 0:01:34.9]} 14... Qxe7 {[%clk 0:00:30.3]} 15. Bf4
{[%clk 0:01:35.1]} 15... Bf5 {[%clk 0:00:26.5]} 16. O-O-O {[%clk 0:01:31]} 16...
Qxe5 {[%clk 0:00:08.7]} 17. Bxe5 {[%clk 0:01:31]} 17... Ke7 {[%clk 0:00:09.4]}
18. Rhe1 {[%clk 0:01:25.2]} 18... Rhe8 {[%clk 0:00:07.5]} 19. Bd4+ {[%clk
0:01:25.1]} 1-0

[Event "Early-Titled-Tuesday-Blitz-October-17-2023"]
[Site "Chess.com"]
[Date "2023.10.17"]
[Round "3"]
[White "Happy1712Drummer"]
[Black "campochess"]
[Result "1-0"]
[WhiteElo "2386"]
[BlackElo "2142"]
[TimeControl "180+1"]
[EndTime "8:27:24 PDT"]
[Termination "Happy1712Drummer won by resignation"]

1. e4 {[%clk 0:03:00.9]} 1... c5 {[%clk 0:02:51.3]} 2. Nf3 {[%clk 0:03:00.8]}
2... Nc6 {[%clk 0:02:51]} 3. c3 {[%clk 0:02:59.7]} 3... Nf6 {[%clk 0:02:47.6]}
4. e5 {[%clk 0:03:00.1]} 4... Nd5 {[%clk 0:02:47.5]} 5. d4 {[%clk 0:03:00.8]}
5... cxd4 {[%clk 0:02:47.6]} 6. Bc4 {[%clk 0:03:01.4]} 6... e6 {[%clk
0:02:46.3]} 7. cxd4 {[%clk 0:02:55.7]} 7... Nb6 {[%clk 0:02:44.8]} 8. Bd3 {[%clk
0:02:34.4]} 8... d6 {[%clk 0:02:41.9]} 9. O-O {[%clk 0:02:32.8]} 9... dxe5
{[%clk 0:02:41.5]} 10. dxe5 {[%clk 0:02:32.6]} 10... Bc5 {[%clk 0:02:35.7]} 11.
Nc3 {[%clk 0:02:19.3]} 11... Nd5 {[%clk 0:02:28.7]} 12. Qe2 {[%clk 0:01:49.1]}
12... Nxc3 {[%clk 0:02:26.5]} 13. bxc3 {[%clk 0:01:50]} 13... O-O {[%clk
0:02:23.3]} 14. Rd1 {[%clk 0:01:49.9]} 14... Qc7 {[%clk 0:02:17.9]} 15. Qe4
{[%clk 0:01:46.1]} 15... g6 {[%clk 0:02:17.6]} 16. Bh6 {[%clk 0:01:45.8]} 16...
Rd8 {[%clk 0:02:15.6]} 17. Bg5 {[%clk 0:01:42.8]} 17... Be7 {[%clk 0:02:14.4]}
18. Qh4 {[%clk 0:01:31.9]} 18... Bxg5 {[%clk 0:02:11]} 19. Nxg5 {[%clk
0:01:31.9]} 19... h5 {[%clk 0:02:07.7]} 20. Qf4 {[%clk 0:00:40.3]} 20... Rxd3
{[%clk 0:01:34.8]} 21. Rxd3 {[%clk 0:00:36.3]} 21... Nxe5 {[%clk 0:01:31.6]} 22.
Re3 {[%clk 0:00:30.3]} 1-0

[Event "Early-Titled-Tuesday-Blitz-October-17-2023"]
[Site "Chess.com"]
[Date "2023.10.17"]
[Round "3"]
[White "biostatistician"]
[Black "UK_23"]
[Result "1-0"]
[WhiteElo "2584"]
[BlackElo "2414"]
[TimeControl "180+1"]
[EndTime "8:27:27 PDT"]
[Termination "biostatistician won by resignation"]

1. d4 {[%clk 0:03:00]} 1... d5 {[%clk 0:03:00.3]} 2. Nf3 {[%clk 0:03:00.9]} 2...
Nf6 {[%clk 0:03:00.2]} 3. c4 {[%clk 0:03:01.8]} 3... e6 {[%clk 0:03:00.3]} 4.
Nc3 {[%clk 0:03:02.1]} 4... Be7 {[%clk 0:03:00.6]} 5. Bg5 {[%clk 0:03:02.3]}
5... O-O {[%clk 0:03:00.8]} 6. e3 {[%clk 0:03:02.6]} 6... b6 {[%clk 0:03:01.2]}
7. Bd3 {[%clk 0:03:01.9]} 7... Bb7 {[%clk 0:02:59.6]} 8. O-O {[%clk 0:03:01.7]}
8... c5 {[%clk 0:02:59]} 9. Qe2 {[%clk 0:03:01]} 9... dxc4 {[%clk 0:02:58.4]}
10. Bxc4 {[%clk 0:03:00.9]} 10... Nbd7 {[%clk 0:02:58]} 11. Rad1 {[%clk
0:03:00.5]} 11... Qb8 {[%clk 0:02:54.8]} 12. Nb5 {[%clk 0:02:52]} 12... cxd4
{[%clk 0:02:39.1]} 13. Rxd4 {[%clk 0:02:34]} 13... Bc5 {[%clk 0:01:50.1]} 14.
Rh4 {[%clk 0:02:25.3]} 14... Be4 {[%clk 0:01:37.7]} 15. Bf4 {[%clk 0:02:16.2]}
15... e5 {[%clk 0:01:33.4]} 16. Bg3 {[%clk 0:02:13]} 16... h6 {[%clk 0:01:20.7]}
17. Rd1 {[%clk 0:02:10.8]} 17... Re8 {[%clk 0:01:15.1]} 18. Rxd7 {[%clk
0:02:01]} 18... Bxf3 {[%clk 0:01:07.9]} 19. Qxf3 {[%clk 0:01:58.7]} 19... Nxd7
{[%clk 0:00:55.8]} 20. Qxf7+ {[%clk 0:01:53.9]} 20... Kh8 {[%clk 0:00:48.9]} 21.
Qxd7 {[%clk 0:01:53.7]} 21... Re7 {[%clk 0:00:43.9]} 22. Qh3 {[%clk 0:01:31.4]}
22... Qd8 {[%clk 0:00:40.9]} 23. Nc3 {[%clk 0:01:28.8]} 23... Rd7 {[%clk
0:00:26.6]} 24. Rxh6+ {[%clk 0:01:25.7]} 24... gxh6 {[%clk 0:00:21.6]} 25. Qxh6+
{[%clk 0:01:24.2]} 25... Rh7 {[%clk 0:00:22.2]} 26. Bxe5+ {[%clk 0:01:24.3]} 1-0